bitfinex-derivatives/quotes_ETHF0:USTF0_20250621
["timestamp","ask_amount","ask_price","bid_price","bid_amount"]
[1750500927533,28.03822618,2441.3,2441.2,0.81912]
[1750500927832,28.03822618,2441.3,2441.1,0.81913]
[1750500928234,0.81912,2441.2,2441.1,0.81913]
[1750500928932,0.81912,2441.2,2441.0,0.81917]
[1750500929335,0.661,2441.1,2441.0,0.81917]
[1750500929534,1.48016,2441.1,2441.0,0.81917]
[1750500929732,0.81919,2441.0,2440.9,3.2078]
[1750500929938,0.81923,2440.9,2440.8,0.81924]
[1750500930131,3.16234618,2440.9,2440.8,0.81924]
[1750500930932,2.34311618,2440.9,2440.8,0.81924]
[1750500931537,27.24311618,2440.9,2440.8,0.81924]
[1750500932034,0.6535,2441.0,2440.9,0.81922]
[1750500932235,25.5565,2441.0,2440.9,0.81922]
[1750500932637,0.81923,2440.9,2440.8,0.81924]
[1750500932829,3.16234618,2440.9,2440.8,0.81924]
[1750500933031,3.16234618,2440.9,2440.7,0.81927]
[1750500933336,25.5565,2441.0,2440.6,3.8596]
[1750500933337,2.34311618,2440.8,2440.6,3.8596]
[1750500933535,24.94,2440.7,2440.3,3.2078]
[1750500933735,2.34311618,2440.4,2440.3,1.47122]
[1750500933941,2.34311618,2440.6,2440.5,0.81934]
[1750500934138,24.941,2440.6,2440.5,0.81936]
[1750500934437,24.941,2440.6,2440.3,1.47121]
[1750500934634,28.76979618,2440.5,2440.4,0.81939]
[1750500934836,28.76979618,2440.5,2440.3,0.6518]
[1750500934837,0.81939,2440.4,2440.3,0.6518]
[1750500935031,25.77139,2440.4,2440.3,1.47121]
[1750500935231,24.952,2440.4,2440.1,0.81947]
[1750500935534,24.952,2440.4,2440.0,3.2078]
[1750500935535,0.81949,2440.1,2440.0,3.2078]
[1750500935836,28.11260618,2440.1,2440.0,4.02733]
[1750500936028,28.11260618,2440.1,2440.0,3.2078]
[1750500936227,36.89891618,2440.1,2439.7,0.81962]
[1750500936439,0.81961,2439.8,2439.6,1.50845]
[1750500936640,28.12674618,2439.7,2439.6,0.6888]
[1750500937737,6.37041618,2440.1,2439.6,0.6888]
[1750500937936,32.18953,2440.0,2439.9,0.81955]
[1750500938127,0.81961,2439.8,2439.6,1.50844]
[1750500938328,25.80465,2439.7,2439.5,3.2078]
[1750500938535,24.985,2439.7,2439.6,0.81966]
[1750500938740,31.379,2439.7,2439.6,0.81966]
[1750500938941,31.379,2439.7,2439.5,3.2078]
[1750500939141,3.03311618,2439.6,2439.5,3.2078]
[1750500939434,3.03541618,2439.9,2439.7,0.81962]
[1750500939640,6.394,2439.7,2439.6,0.81964]
[1750500940334,8.73711618,2439.7,2439.6,0.81964]
[1750500941232,6.394,2439.7,2439.6,0.81964]
[1750500942346,0.81961,2439.8,2439.6,0.81964]
[1750500942543,31.448,2439.7,2439.6,0.81964]
[1750500942843,0.81959,2439.8,2439.7,0.8196]
[1750500943042,0.81964,2439.7,2439.6,0.81966]
[1750500943245,3.16275618,2439.7,2439.6,0.81966]
[1750500943740,2.34311618,2439.7,2439.6,0.81966]
[1750500943944,3.16274618,2439.7,2439.6,0.81966]
[1750500944242,0.81966,2439.6,2439.5,3.2078]
[1750500945043,2.12556,2439.6,2439.5,3.2078]
[1750500945243,3.16275618,2439.7,2439.5,3.2078]
[1750500945634,31.475,2439.6,2439.5,4.02748]
[1750500945840,3.16275618,2439.7,2439.6,0.81965]
[1750500945841,2.34311618,2439.7,2439.6,0.81965]
[1750500946037,34.64074618,2439.7,2439.6,0.81965]
[1750500946237,8.74011618,2439.7,2439.4,0.81971]
[1750500946437,0.81971,2439.5,2439.3,1.50594]
[1750500946638,6.397,2439.4,2439.3,1.50596]
[1750500947541,3.16282618,2439.5,2439.4,0.81973]
[1750500947749,33.82111618,2439.5,2439.4,0.81973]
[1750500947935,34.64080618,2439.5,2439.4,0.81973]
[1750500948251,3.16280618,2439.5,2439.3,1.50594]
[1750500948547,31.483,2439.4,2439.3,1.50594]
[1750500948848,32.30273,2439.4,2439.3,1.50594]
[1750500949149,31.483,2439.4,2439.3,1.50596]
[1750500949743,31.479,2439.4,2439.3,0.6862]
[1750500950051,0.81969,2439.5,2439.4,0.8197]
[1750500950348,31.583,2439.5,2439.4,0.81973]
[1750500950547,33.92611618,2439.5,2439.1,3.2078]
[1750500950748,0.81977,2439.3,2439.2,0.81979]
[1750500950948,2.34311618,2439.3,2439.2,0.81979]
[1750500951153,3.16287618,2439.3,2439.2,0.81979]
[1750500951344,3.16287618,2439.3,2439.1,3.2078]
[1750500951345,2.34311618,2439.3,2439.1,3.2078]
[1750500951655,25.1,2439.2,2439.1,4.0276]
[1750500951841,0.81975,2439.4,2439.1,3.2078]
[1750500952042,25.1,2439.3,2439.2,0.81979]
[1750500952249,7.32175,2439.4,2439.3,0.81976]
[1750500952448,32.44375,2439.4,2439.3,0.81976]
[1750500952853,32.44375,2439.4,2439.1,4.537]
[1750500952854,2.34311618,2439.5,2439.4,0.81973]
[1750500953453,33.96511618,2439.5,2439.4,0.81973]
[1750500953654,2.34311618,2439.5,2439.4,0.81973]
[1750500954253,33.96311618,2439.5,2439.4,0.81973]
[1750500955053,34.78280618,2439.5,2439.4,0.81973]
[1750500955447,34.77580618,2439.5,2439.4,0.81973]
[1750500955646,31.613,2439.5,2439.4,0.81973]
[1750500955846,9.66479618,2439.6,2439.5,0.81969]
[1750500956147,34.77579618,2439.6,2439.5,0.81969]
[1750500956544,0.81971,2439.5,2439.4,0.81971]
[1750500957355,7.32167,2439.6,2439.5,0.81967]
[1750500957554,32.42667,2439.6,2439.5,0.81967]
[1750500957854,0.81967,2439.6,2439.5,0.81967]
[1750500958058,31.607,2439.6,2439.5,0.81967]
[1750500958251,2.34311618,2439.7,2439.6,0.81966]
[1750500958556,33.94611618,2439.7,2439.6,0.81966]
[1750500958854,2.34311618,2439.7,2439.6,0.88813599]
[1750500959052,33.94511618,2439.7,2439.6,0.88813599]
[1750500960047,2.34311618,2439.7,2439.6,0.88813599]
[1750500960247,3.2078,2440.0,2439.9,0.81956]
[1750500960446,2.34311618,2440.2,2440.1,0.81949]
[1750500960447,25.095,2440.2,2440.1,0.81949]
[1750500960649,25.113,2440.2,2439.8,2.34311618]
[1750500960953,3.2078,2440.3,2440.2,0.81946]
[1750500961251,6.502,2440.4,2440.3,0.81942]
[1750500961455,8.84511618,2440.7,2440.3,3.2078]
[1750500961758,3.16247618,2440.5,2440.4,0.81938]
[1750500961957,2.34311618,2440.5,2440.4,0.81938]
[1750500962157,3.16247618,2440.5,2440.4,0.81938]
[1750500962659,3.16247618,2440.5,2440.1,1.3773]
[1750500962858,2.34311618,2440.5,2440.4,0.81939]
[1750500963061,0.81949,2440.1,2440.0,3.2078]
[1750500963261,0.81963,2439.7,2439.6,3.27627599]
[1750500963554,25.142,2439.7,2439.6,4.09592599]
[1750500964755,25.147,2439.7,2439.6,4.09593599]
[1750500964957,9.66468618,2439.9,2439.8,0.81959]
[1750500965154,34.81068618,2439.9,2439.8,0.81959]
[1750500965360,33.99111618,2439.9,2439.8,0.81959]
[1750500965859,33.99111618,2439.9,2439.6,3.2078]
[1750500966060,0.81963,2439.7,2439.6,4.02744]
[1750500966461,0.81962,2439.8,2439.6,4.02744]
[1750500966863,0.81963,2439.7,2439.6,4.02744]
[1750500967062,3.16274618,2439.7,2439.6,4.02744]
[1750500967259,3.16274618,2439.7,2439.6,3.2078]
[1750500968162,0.81969,2439.5,2439.4,0.8197]
[1750500968359,3.16280618,2439.5,2439.3,0.81974]
[1750500968566,0.81974,2439.4,2439.1,1.4027]
[1750500968762,25.95676,2439.3,2439.2,0.81979]
[1750500969358,25.137,2439.3,2439.2,0.81979]
[1750500970060,0.81973,2439.4,2439.3,0.81974]
[1750500970259,25.95573,2439.4,2439.3,0.81974]
[1750500971264,25.136,2439.4,2439.3,0.81974]
[1750500971560,10.36073618,2439.5,2439.4,0.81973]
[1750500971761,35.50573618,2439.5,2439.4,0.81973]
[1750500972271,0.81973,2439.4,2439.3,0.81974]
[1750500972678,25.95373,2439.4,2439.3,0.81974]
[1750500973079,25.134,2439.4,2439.3,0.81974]
[1750500973579,25.134,2439.4,2439.2,3.2078]
[1750500973580,3.85872618,2439.5,2439.4,0.81973]
[1750500973780,0.81974,2439.4,2439.3,0.81974]
[1750500975481,0.81976,2439.3,2439.2,4.02758]
[1750500975683,1.3068,2439.4,2439.3,0.81976]
[1750500976086,2.12653,2439.4,2439.3,0.81976]
[1750500976281,1.3068,2439.4,2439.3,0.81976]
[1750500976973,2.12653,2439.4,2439.3,0.81976]
[1750500977179,33.74853,2439.4,2439.3,0.81976]
[1750500979781,4.51372618,2439.5,2439.4,0.81973]
[1750500979981,35.47572618,2439.5,2439.4,0.81973]
[1750500983489,35.49172618,2439.5,2439.4,0.81973]
[1750500983695,35.48472618,2439.5,2439.4,0.81973]
[1750500986688,3.85872618,2439.5,2439.4,0.81973]
[1750500986889,35.47572618,2439.5,2439.4,0.81973]
[1750500987282,32.3069,2439.5,2439.4,0.81973]
[1750500988992,32.3009,2439.5,2439.4,0.81973]
[1750500990388,0.6959,2439.5,2439.4,0.81973]
[1750500990588,25.7799,2439.5,2439.4,0.81973]
[1750500991992,0.6959,2439.5,2439.4,0.81973]
[1750500992197,6.37055618,2439.7,2439.6,0.81966]
[1750500992387,37.96255618,2439.7,2439.6,0.81966]
[1750500992586,39.0500888,2439.7,2439.6,0.81966]
[1750500993695,36.70697262,2439.7,2439.6,0.81966]
[1750500993894,39.0500888,2439.7,2439.6,0.81966]
[1750500994192,38.2304488,2439.7,2439.6,0.81966]
[1750500994690,39.0500788,2439.7,2439.6,0.81966]
[1750500994895,38.2304488,2439.7,2439.6,0.81966]
[1750500995092,6.6384488,2439.7,2439.6,0.81966]
[1750500995293,38.2214488,2439.7,2439.6,0.81966]
[1750500995693,39.0410788,2439.7,2439.6,0.81966]
[1750500997298,38.2214488,2439.7,2439.6,0.81966]
[1750500997496,39.0410788,2439.7,2439.6,0.81966]
[1750500997697,39.0320788,2439.7,2439.6,0.81966]
[1750500998600,38.2114488,2439.7,2439.6,0.81966]
[1750500998800,39.0310788,2439.7,2439.6,0.81966]
[1750501000400,4.29533262,2439.7,2439.6,0.81966]
[1750501000602,38.2024488,2439.7,2439.6,0.81966]
[1750501000799,39.0220788,2439.7,2439.6,0.81966]
[1750501001000,29.2952788,2439.7,2439.6,0.81966]
[1750501001902,34.9946488,2439.7,2439.6,0.81966]
[1750501003404,35.8142788,2439.7,2439.6,0.81966]
[1750501003606,0.81966,2439.6,2439.5,1.51276]
[1750501003799,0.81969,2439.5,2439.4,0.88819599]
[1750501004006,29.95910595,2439.5,2439.4,0.06847599]
[1750501004205,29.9591502,2439.5,2439.4,0.06847599]
[1750501004905,28.05051618,2439.5,2439.4,0.88820599]
[1750501006101,27.37811618,2439.5,2439.4,0.88820599]
[1750501009007,28.19780618,2439.5,2439.4,0.88820599]
[1750501009209,28.19780618,2439.5,2439.4,0.06847599]
[1750501009403,28.19780618,2439.5,2439.4,0.88820599]
[1750501009604,28.19780618,2439.5,2439.4,0.06847599]
[1750501010006,29.28716854,2439.5,2439.4,0.06847599]
[1750501010611,0.81986,2439.0,2438.9,3.2078]
[1750501010800,28.21397618,2439.0,2438.9,4.0277]
[1750501011107,28.21397618,2439.0,2438.9,3.2078]
[1750501011812,28.21397618,2439.0,2438.9,4.02769]
[1750501012009,27.39311618,2439.0,2438.9,4.02769]
[1750501013107,27.39311618,2439.0,2438.9,3.2078]
[1750501013108,28.21297618,2439.0,2438.9,3.2078]
[1750501013309,29.59247618,2439.0,2438.9,3.2078]
[1750501013908,4.37481618,2439.0,2438.9,4.0277]
[1750501014111,36.71767618,2439.0,2438.9,4.0277]
[1750501015901,35.89781618,2439.0,2438.9,4.0277]
[1750501016207,35.89581618,2439.0,2438.9,4.0277]
[1750501018111,36.55741618,2439.0,2438.9,4.0277]
[1750501018911,37.37727618,2439.0,2438.8,0.81992]
[1750501019416,36.55741618,2439.0,2438.9,0.8199]
[1750501021007,35.17791618,2439.0,2438.9,0.8199]
[1750501021515,3.65691618,2439.0,2438.9,0.8199]
[1750501021710,34.49731618,2439.0,2438.9,4.0277]
[1750501021919,33.84611618,2439.0,2438.9,4.0277]
[1750501022213,34.66598618,2439.0,2438.8,0.81991]
[1750501022405,34.66598618,2439.0,2438.6,5.2497]
[1750501022600,33.84611618,2439.0,2438.9,0.8199]
[1750501023317,37.05391618,2439.0,2438.7,0.81995]
[1750501023512,2.34311618,2438.7,2438.6,4.7277]
[1750501023817,27.37411618,2438.7,2438.6,4.7277]
[1750501024609,2.34311618,2438.7,2438.6,4.7277]
[1750501024815,3.2078,2439.0,2438.9,0.88837599]
[1750501025014,35.54066,2439.0,2438.9,0.06847599]
[1750501025313,32.33286,2439.0,2438.9,0.06847599]
[1750501025712,32.33286,2439.0,2438.9,0.76837599]
[1750501026113,31.513,2439.0,2438.9,1.58827599]
[1750501026717,3.86545618,2439.1,2439.0,0.81986]
[1750501026913,33.85011618,2439.1,2439.0,0.81983]
[1750501027118,34.66994618,2439.1,2439.0,0.81983]
[1750501027518,3.16294618,2439.1,2439.0,0.81983]
[1750501027717,28.18794618,2439.1,2439.0,0.81983]
[1750501028110,27.36811618,2439.1,2439.0,0.81983]
[1750501028809,28.18794618,2439.1,2439.0,0.81983]
[1750501029005,28.87154618,2439.1,2439.0,0.81983]
[1750501030020,3.84654618,2439.1,2439.0,0.81983]
[1750501030622,0.81986,2439.0,2438.9,1.58824599]
[1750501030921,10.32757618,2439.1,2439.0,0.81986]
[1750501031221,0.81986,2439.0,2438.9,1.58824599]
[1750501031420,35.36556618,2439.1,2439.0,0.81986]
[1750501031619,0.81986,2439.0,2438.9,1.58824599]
[1750501032517,0.81986,2439.0,2438.9,0.06847599]
[1750501032722,2.14936,2439.0,2438.9,0.06847599]
[1750501034921,2.14936,2439.0,2438.9,0.88836599]
[1750501035919,2.14936,2439.0,2438.9,0.06847599]
[1750501037018,0.81996,2438.7,2438.6,3.2078]
[1750501037220,0.82,2438.6,2438.5,0.82002]
[1750501037521,3.02151618,2438.6,2438.5,0.82002]
[1750501037721,3.43087391,2438.6,2438.5,0.82002]
[1750501037920,2.34311618,2438.6,2438.5,0.82002]
[1750501039621,31.532,2438.6,2438.5,0.82002]
[1750501040022,33.87511618,2438.6,2438.5,0.82002]
[1750501040918,34.69511618,2438.6,2438.5,0.82002]
[1750501041123,35.22181618,2438.6,2438.5,0.82002]
[1750501041521,36.04181618,2438.6,2438.5,0.82002]
[1750501042614,0.82003,2438.5,2438.4,0.82004]
[1750501042821,1.9999,2438.5,2438.4,0.82004]
[1750501043119,2.81993,2438.5,2438.3,0.82008]
[1750501043320,28.72591618,2438.4,2438.3,0.82008]
[1750501047222,29.54597618,2438.4,2438.3,0.82008]
[1750501048227,31.533,2438.4,2438.2,3.2078]
[1750501048426,31.533,2438.4,2438.0,2.05048]
[1750501048427,33.87611618,2438.4,2438.3,1.4637]
[1750501048626,34.69617618,2438.4,2438.3,1.4637]
[1750501049229,0.82011,2438.3,2437.9,3.2078]
[1750501049530,25.093,2438.2,2438.1,0.82016]
[1750501052219,9.65121618,2438.3,2438.2,0.82013]
[1750501052423,33.91311618,2438.3,2438.2,0.82013]
[1750501053428,34.73321618,2438.3,2438.2,0.82013]
[1750501054436,33.91311618,2438.3,2438.2,0.82013]
[1750501054637,34.73321618,2438.3,2438.2,0.82013]
[1750501056735,33.91311618,2438.3,2438.2,0.82013]
[1750501056933,34.73321618,2438.3,2438.2,0.82013]
[1750501057135,33.91311618,2438.3,2438.2,0.82013]
[1750501057634,33.90411618,2438.3,2438.2,0.82013]
[1750501058534,34.72421618,2438.3,2438.2,0.82013]
[1750501059839,33.90411618,2438.3,2438.2,0.82013]
[1750501060327,2.34311618,2438.3,2438.2,0.82013]
[1750501060532,33.90611618,2438.3,2438.2,0.82013]
[1750501062941,8.83111618,2438.3,2438.2,0.82013]
[1750501063135,33.89611618,2438.3,2438.2,0.82013]
[1750501063331,33.89211618,2438.3,2438.2,0.82013]
[1750501063738,27.40311618,2438.3,2438.2,0.82013]
[1750501064742,2.34311618,2438.3,2438.2,0.82013]
[1750501065041,27.40011618,2438.3,2438.2,0.82013]
[1750501065840,0.82006,2438.4,2438.3,0.8201]
[1750501066043,34.70718618,2438.4,2438.1,3.53217599]
[1750501066240,34.70718618,2438.4,2438.3,0.8201]
[1750501066439,35.80099008,2438.4,2438.3,0.8201]
[1750501067346,0.82012,2438.3,2438.2,0.82011]
[1750501067937,1.47142,2438.3,2438.2,0.82011]
[1750501068138,0.6513,2438.3,2438.2,0.82011]
[1750501069040,2.7704,2438.3,2438.2,0.82011]
[1750501069742,1.9503,2438.3,2438.2,0.82011]
[1750501069941,2.7704,2438.3,2438.2,0.82011]
[1750501070543,1.9503,2438.3,2438.2,0.82011]
[1750501070938,2.7704,2438.3,2438.2,0.82011]
[1750501071246,3.04465812,2438.3,2438.2,0.82011]
[1750501071545,1.74565812,2438.3,2438.2,0.82011]
[1750501071849,0.6513,2438.3,2438.2,0.82011]
[1750501072047,25.6823,2438.3,2438.2,4.02791]
[1750501072440,28.84551618,2438.3,2438.2,4.02791]
[1750501072935,25.031,2438.3,2438.2,3.2078]
[1750501073138,6.465,2438.5,2438.4,0.82006]
[1750501073332,32.58750406,2438.5,2438.4,0.82006]
[1750501073941,1.09450406,2438.5,2438.4,1.51326]
[1750501074139,7.7882,2438.7,2438.6,0.82]
[1750501074140,1.3232,2438.7,2438.6,0.82]
[1750501074347,27.44839119,2438.7,2438.6,0.82]
[1750501075046,2.41739119,2438.7,2438.6,0.82]
[1750501075247,27.45439119,2438.7,2438.6,0.82]
[1750501075743,26.3602,2438.7,2438.6,0.82]
[1750501076049,3.2078,2439.1,2438.8,0.81991]
[1750501076341,2.34311618,2438.9,2438.8,0.81991]
[1750501076646,10.17241618,2439.0,2438.9,0.81989]
[1750501076846,7.8293,2439.0,2438.9,0.81989]
[1750501077044,3.2078,2439.1,2439.0,0.81986]
[1750501077547,28.2418,2439.1,2439.0,0.81986]
[1750501077746,0.81974,2439.4,2438.7,4.76323]
[1750501077747,5.2001,2439.5,2438.9,3.2078]
[1750501077947,2.34311618,2439.3,2439.2,0.81977]
[1750501078445,6.465,2439.4,2439.3,0.81976]
[1750501078645,31.519,2439.4,2439.3,0.81976]
[1750501078848,3.04401618,2439.5,2439.4,0.81973]
[1750501079348,28.09301618,2439.5,2439.4,0.81973]
[1750501079552,3.04401618,2439.5,2439.4,0.81973]
[1750501079741,28.09001618,2439.5,2439.4,0.81973]
[1750501081157,2.34311618,2439.6,2439.2,3.2078]
[1750501081349,25.044,2439.5,2439.2,6.64434]
[1750501081550,25.044,2439.5,2439.4,0.81973]
[1750501081852,27.38711618,2439.5,2439.4,0.81973]
[1750501085454,2.34311618,2439.5,2439.4,0.81973]
[1750501085651,27.39811618,2439.5,2439.4,0.81973]
[1750501086051,0.02169,2439.7,2439.6,0.81966]
[1750501087054,0.02169,2439.7,2439.6,1.49916]
[1750501087551,0.02169,2439.7,2439.6,2.88696]
[1750501088150,7.62031618,2440.1,2439.8,2.04898]
[1750501088451,3.2078,2440.1,2440.0,0.81953]
[1750501088661,0.6948,2440.3,2440.2,0.81946]
[1750501088853,3.03791618,2440.3,2440.2,0.81946]
[1750501089446,3.01291618,2440.5,2440.4,0.81939]
[1750501089752,28.07791618,2440.5,2440.4,0.81939]
[1750501089943,3.01291618,2440.5,2440.4,0.81939]
[1750501090250,28.07891618,2440.5,2440.4,0.81939]
[1750501090762,29.45941618,2440.5,2440.4,0.81939]
[1750501091246,29.45941618,2440.5,2440.2,0.81943]
[1750501091559,5.55091618,2440.3,2440.2,0.81946]
[1750501091950,7.75083618,2440.3,2440.2,0.81946]
[1750501093559,0.81946,2440.2,2440.1,0.81947]
[1750501093759,0.81959,2439.8,2439.7,3.2078]
[1750501093961,28.22270618,2439.8,2439.7,3.2078]
[1750501094467,27.40311618,2439.8,2439.7,4.02743]
[1750501095062,28.79801618,2439.8,2439.7,4.02743]
[1750501095757,0.7064,2439.9,2439.8,0.81959]
[1750501095960,25.072,2439.9,2439.8,0.81959]
[1750501096359,26.3925,2439.9,2439.8,0.81959]
[1750501098165,25.072,2439.9,2439.8,0.81959]
[1750501098667,3.04821618,2440.0,2439.9,0.81956]
[1750501098850,28.11721618,2440.0,2439.9,0.81956]
[1750501099049,3.04821618,2440.0,2439.9,0.81956]
[1750501099258,28.11921618,2440.0,2439.9,0.81956]
[1750501102661,5.34772,2440.4,2440.3,0.81942]
[1750501102962,39.86903618,2440.4,2440.3,0.81942]
[1750501103157,39.04961618,2440.4,2440.3,0.81942]
[1750501103359,7.52161618,2440.4,2440.3,0.81942]
[1750501103558,37.75711618,2440.4,2440.3,0.81942]
[1750501103759,6.20111618,2440.4,2440.3,0.81942]
[1750501103956,28.06531618,2440.4,2440.3,0.81942]
[1750501104760,2.99331618,2440.4,2440.3,0.81942]
[1750501104962,25.072,2440.4,2440.3,0.81942]
[1750501105164,2.34311618,2440.6,2440.5,0.81936]
[1750501105364,27.41111618,2440.6,2440.5,0.81936]
[1750501107864,29.56953618,2440.6,2440.5,0.81936]
[1750501108468,0.81939,2440.5,2440.1,0.6943]
[1750501108766,2.20379,2440.5,2440.4,0.81939]
[1750501109271,0.81956,2439.9,2439.8,0.06847599]
[1750501109459,32.38956,2439.9,2439.8,0.06847599]
[1750501109766,0.81972,2439.5,2439.3,0.81975]
[1750501109964,26.4558,2439.4,2439.3,0.81975]
[1750501110165,26.4558,2439.4,2438.9,0.7032]
[1750501110166,27.8402,2439.4,2439.2,0.81978]
[1750501110668,28.65994,2439.4,2439.2,0.81978]
[1750501110864,28.65994,2439.4,2438.9,0.7032]
[1750501112269,28.65994,2439.4,2439.3,0.81976]
[1750501112471,27.8402,2439.4,2439.3,0.81976]
[1750501113466,1.3688,2439.4,2439.3,0.81976]
[1750501113676,26.4758,2439.4,2439.3,0.81976]
[1750501116770,28.60373,2439.4,2439.3,0.81976]
[1750501116967,0.81978,2439.3,2439.1,0.8198]
[1750501117174,2.12798,2439.3,2439.1,0.8198]
[1750501117573,2.12798,2439.3,2439.2,0.81979]
[1750501118371,2.12798,2439.3,2438.9,0.77167599]
[1750501118771,0.81979,2439.2,2439.1,0.8198]
[1750501119072,2.21249,2439.2,2439.1,0.8198]
[1750501119475,1.3927,2439.2,2439.1,0.8198]
[1750501120872,2.21249,2439.2,2439.1,0.8198]
[1750501121373,1.3927,2439.2,2439.1,0.8198]
[1750501121577,2.21249,2439.2,2439.1,0.8198]
[1750501122775,1.3927,2439.2,2439.1,0.8198]
[1750501123475,0.81979,2439.2,2439.1,0.8198]
[1750501123872,6.492,2439.3,2439.2,0.81979]
[1750501123873,7.31178,2439.3,2439.2,0.81979]
[1750501124077,8.64628,2439.3,2439.2,0.81979]
[1750501124277,0.8198,2439.2,2439.1,0.81981]
[1750501124774,8.64629,2439.3,2439.1,0.81981]
[1750501125077,0.81979,2439.2,2439.1,0.81981]
[1750501125274,2.15429,2439.2,2439.1,0.81981]
[1750501125778,2.15429,2439.2,2439.1,0.81983]
[1750501126677,0.81983,2439.1,2439.0,0.81984]
[1750501126871,3.2078,2439.5,2439.4,0.81973]
[1750501127177,4.51884125,2440.0,2439.4,0.81971]
[1750501127178,0.81967,2439.6,2439.4,0.81971]
[1750501127378,0.6864,2439.5,2439.4,0.81971]
[1750501127572,0.6864,2439.5,2439.0,3.40536]
[1750501127876,0.6864,2439.5,2439.4,0.81973]
[1750501129276,25.7914,2439.5,2439.4,0.81973]
[1750501129480,32.2854,2439.5,2439.4,0.81973]
[1750501132985,2.35289023,2439.7,2439.6,0.81966]
[1750501133177,34.62269023,2439.7,2439.6,0.81966]
[1750501133580,3.03669023,2439.7,2439.6,0.81966]
[1750501133778,3.8562,2439.8,2439.7,0.81963]
[1750501133980,36.134,2439.8,2439.7,0.81963]
[1750501134582,4.54,2439.8,2439.7,0.81963]
[1750501134788,36.148,2439.8,2439.7,0.81963]
[1750501135482,4.54,2439.8,2439.7,0.81963]
[1750501135689,36.148,2439.8,2439.7,0.81963]
[1750501136385,36.144,2439.8,2439.7,0.81963]
[1750501137292,36.141,2439.8,2439.7,0.81963]
[1750501137885,4.54,2439.8,2439.7,0.81963]
[1750501138087,36.95659,2439.8,2439.7,0.81963]
[1750501138288,38.33239,2439.8,2439.7,0.81963]
[1750501138787,5.9158,2439.8,2439.7,0.81963]
[1750501138987,36.144,2439.8,2439.7,0.81963]
[1750501139189,6.45528242,2439.8,2439.7,0.81963]
[1750501139388,38.57529242,2439.8,2439.7,0.81963]
[1750501139786,6.96629242,2439.8,2439.7,0.81963]
[1750501140085,39.39488242,2439.8,2439.7,0.81963]
[1750501140291,39.39488242,2439.8,2439.6,0.81964]
[1750501140493,3.68349023,2439.7,2439.6,0.81964]
[1750501141594,2.35289023,2439.7,2439.6,0.81964]
[1750501141894,33.96189023,2439.7,2439.6,0.81964]
[1750501142591,27.45689023,2439.7,2439.6,0.81964]
[1750501142890,33.95489023,2439.7,2439.6,0.81964]
[1750501144094,2.35289023,2439.7,2439.6,0.81964]
[1750501144593,4.54,2439.8,2439.7,0.81963]
[1750501144801,38.04909757,2439.8,2439.7,0.81963]
[1750501145291,38.04809757,2439.8,2439.7,0.81963]
[1750501145592,37.22850757,2439.8,2439.7,0.81963]
[1750501145795,38.04809757,2439.8,2439.7,0.81963]
[1750501146092,38.04809757,2439.8,2439.7,1.50093]
[1750501146391,37.22850757,2439.8,2439.7,1.50093]
[1750501146592,38.04809757,2439.8,2439.7,1.50093]
[1750501146793,38.04809757,2439.8,2439.7,0.6813]
[1750501147198,38.04809757,2439.8,2439.7,1.50093]
[1750501148191,34.84029757,2439.8,2439.7,1.50093]
[1750501148798,34.83229757,2439.8,2439.7,1.50093]
[1750501149895,8.24890757,2439.8,2439.7,1.50093]
[1750501150090,33.32294504,2439.8,2439.7,1.50093]
[1750501150290,1.74394504,2439.8,2439.7,1.50093]
[1750501150490,32.2204,2439.8,2439.7,1.50093]
[1750501150698,1.74402841,2439.8,2439.7,1.50093]
[1750501150892,0.6484,2439.8,2439.7,1.50093]
[1750501151091,32.2184,2439.8,2439.7,1.50093]
[1750501151390,26.80812259,2439.8,2439.7,1.50093]
[1750501151590,6.505,2439.8,2439.7,1.50093]
[1750501151796,31.568,2439.8,2439.7,2.78103]
[1750501152191,3.2078,2440.0,2439.9,0.81956]
[1750501152393,35.60233,2440.0,2439.9,0.81956]
[1750501152798,3.2078,2440.0,2439.9,0.81956]
[1750501153096,34.7828,2440.0,2439.9,0.81956]
[1750501156102,3.2078,2440.0,2439.9,0.81956]
[1750501156290,34.7698,2440.0,2439.9,0.81956]
[1750501156696,37.11769023,2440.0,2439.9,0.81956]
[1750501157803,5.56069023,2440.0,2439.9,0.81956]
[1750501157998,37.11069023,2440.0,2439.9,0.81956]
[1750501160206,37.10369023,2440.0,2439.9,0.81956]
[1750501160899,37.10369023,2440.0,2439.9,0.88803599]
[1750501161804,37.91622023,2440.0,2439.9,0.06847599]
[1750501162005,39.01125327,2440.0,2439.9,0.06847599]
[1750501162196,42.5934635,2440.0,2439.3,3.24197233]
[1750501162397,3.2078,2439.7,2439.4,0.8197]
[1750501162703,0.81969,2439.5,2439.4,0.8197]
[1750501163491,0.81973,2439.4,2439.3,0.81974]
[1750501163710,28.20662023,2439.4,2439.3,0.81974]
[1750501163905,29.53642023,2439.4,2439.2,1.52107]
[1750501164105,6.473,2439.3,2439.2,1.52107]
[1750501165401,2.35289023,2439.4,2439.3,0.81976]
[1750501165701,33.85589023,2439.4,2439.3,0.81976]
[1750501165906,31.503,2439.4,2439.3,0.81976]
[1750501169011,31.497,2439.4,2439.3,0.81976]
[1750501169311,3.64809023,2439.6,2439.5,0.81969]
[1750501169608,35.14009023,2439.6,2439.5,0.81969]
[1750501170314,35.14009023,2439.6,2439.4,0.8197]
[1750501170611,4.49069023,2439.5,2439.2,0.7013]
[1750501170809,26.3321,2439.4,2439.3,0.81976]
[1750501175008,26.3321,2439.4,2439.3,0.88823599]
[1750501176118,27.15183,2439.4,2439.3,0.06847599]
[1750501176320,35.35963,2439.4,2439.3,0.06847599]
[1750501176618,0.81985,2439.1,2439.0,0.81985]
[1750501176816,32.30485,2439.1,2439.0,0.81985]